fUSD/lending_fUSD_20250111
["ID","MTS","AMOUNT","RATE_DAILY","PERIOD"]
[348497720,1736585437867,-500.0,9.998e-05,2]
[348497721,1736585437877,-1773.7,9.998e-05,2]
[348497722,1736585437886,-500.0,9.998e-05,2]
[348497723,1736585437895,-500.0,9.998e-05,2]
[348497724,1736585437905,-500.0,9.998e-05,2]
[348497725,1736585437914,-1186.6,9.998e-05,2]
[348497726,1736585437924,-500.0,9.998e-05,2]
[348497727,1736585437933,-500.0,9.998e-05,2]
[348497728,1736585437942,-500.0,9.998e-05,2]
[348497729,1736585437952,-500.0,9.998e-05,2]
[348497730,1736585437965,-500.0,9.998e-05,2]
[348497731,1736585437975,-514.27489801,9.998e-05,2]
[348497732,1736585437984,-464.39536385,9.998e-05,2]
[348497733,1736585437993,-982.91,9.998e-05,2]
[348497734,1736585438003,-500.0,9.998e-05,2]
[348497735,1736585438014,-500.0,9.998e-05,2]
[348497736,1736585438023,-1948.61706646,9.998e-05,2]
[348497737,1736585438032,-500.0,9.998e-05,2]
[348497738,1736585438042,-280.56214618,9.998e-05,2]
[348497739,1736585438054,-105.69248216,9.998e-05,2]
[348497740,1736585438063,-403.47541146,9.998e-05,2]
[348497741,1736585438083,-499.91242727,9.973e-05,2]
[348497742,1736585438093,-96.52458854,9.998e-05,2]
[348497743,1736585438102,-500.0,9.998e-05,2]
[348497744,1736585438111,-2107.07,9.998e-05,2]
[348497745,1736585438120,-500.0,9.998e-05,2]
[348497746,1736585438130,-500.0,9.998e-05,2]
[348497747,1736585438139,-500.0,9.998e-05,2]
[348497748,1736585438149,-500.0,9.998e-05,2]
[348497749,1736585438159,-500.0,9.998e-05,2]
[348497750,1736585438168,-500.0,9.998e-05,2]
[348497751,1736585438177,-500.0,9.998e-05,2]
[348497752,1736585438187,-500.0,9.998e-05,2]
[348497753,1736585438196,-174.26,9.998e-05,2]
[348497754,1736585438206,-202.88,9.998e-05,2]
[348497755,1736585438215,-500.0,9.998e-05,2]
[348497756,1736585438225,-500.0,9.998e-05,2]
[348497757,1736585438234,-500.0,9.998e-05,2]
[348497758,1736585438243,-947.98443504,9.998e-05,2]
[348497759,1736585438255,-115.35556496,9.998e-05,2]
[348497760,1736585438265,-500.0,9.998e-05,2]
[348497761,1736585438274,-722.81,9.998e-05,2]
[348497762,1736585438286,-571.81,9.998e-05,2]
[348497763,1736585438295,-1735.81,9.998e-05,2]
[348497764,1736585438304,-500.0,9.998e-05,2]
[348497765,1736585438313,-500.0,9.998e-05,2]
[348497766,1736585438323,-535.06,9.998e-05,2]
[348497767,1736585438332,-737.5,9.998e-05,2]
[348497768,1736585438341,-1073.37,9.998e-05,2]
[348497769,1736585438351,-500.0,9.999e-05,2]
[348497770,1736585438361,-500.0,9.999e-05,2]
[348497771,1736585438370,-500.0,9.999e-05,2]
[348497772,1736585438379,-500.0,9.999e-05,2]
[348497773,1736585438389,-220.46,9.999e-05,2]
[348497774,1736585438398,-500.0,9.999e-05,2]
[348497775,1736585438407,-500.0,9.999e-05,2]
[348497776,1736585438416,-500.0,9.999e-05,2]
[348497777,1736585438426,-500.0,9.999e-05,2]
[348497778,1736585438436,-500.0,9.999e-05,2]
[348497779,1736585438445,-500.0,9.999e-05,2]
[348497780,1736585438454,-500.0,9.999e-05,2]
[348497781,1736585438463,-500.0,9.999e-05,2]
[348497782,1736585438472,-500.0,9.999e-05,2]
[348497783,1736585438481,-500.0,9.999e-05,2]
[348497784,1736585438490,-500.0,9.999e-05,2]
[348497785,1736585438499,-500.0,9.999e-05,2]
[348497786,1736585438508,-500.0,9.999e-05,2]
[348497787,1736585438517,-500.0,9.999e-05,2]
[348497788,1736585438526,-500.0,9.999e-05,2]
[348497789,1736585438535,-500.0,9.999e-05,2]
[348497790,1736585438544,-500.0,9.999e-05,2]
[348497791,1736585438552,-573.51,9.999e-05,2]
[348497792,1736585438561,-500.0,9.999e-05,2]
[348497793,1736585438570,-500.0,9.999e-05,2]
[348497794,1736585438579,-500.0,9.999e-05,2]
[348497795,1736585438588,-500.0,9.999e-05,2]
[348497796,1736585438598,-500.0,9.999e-05,2]
[348497797,1736585438607,-276.90774251,9.999e-05,2]
[348497798,1736585438616,-523.01,9.999e-05,2]
[348497799,1736585438625,-500.0,9.999e-05,2]
[348497800,1736585438634,-500.0,9.999e-05,2]
[348497801,1736585438644,-500.0,9.999e-05,2]
[348497802,1736585438653,-500.0,9.999e-05,2]
[348497803,1736585438662,-500.0,9.999e-05,2]
[348497804,1736585438671,-380.14369253,9.999e-05,2]
[348497805,1736585438683,-119.85630747,9.999e-05,2]
[348497806,1736585438692,-500.0,9.999e-05,2]
[348497807,1736585438700,-500.0,9.999e-05,2]
[348497808,1736585438710,-500.0,9.999e-05,2]
[348497809,1736585438719,-500.0,9.999e-05,2]
[348497810,1736585438728,-500.0,9.999e-05,2]
[348497811,1736585438737,-495.013935,9.999e-05,2]
[348497812,1736585438746,-500.0,9.999e-05,2]
[348497813,1736585438755,-500.0,9.999e-05,2]
[348497814,1736585438764,-156.484712,9.999e-05,2]
[348497815,1736585438773,-156.769681,9.999e-05,2]
[348497816,1736585438783,-500.0,9.999e-05,2]
[348497817,1736585438792,-500.0,9.999e-05,2]
[348497818,1736585438801,-500.0,9.999e-05,2]
[348497819,1736585438810,-500.0,9.999e-05,2]
[348497820,1736585438819,-500.0,9.999e-05,2]
[348497821,1736585438828,-691.85,9.999e-05,2]
[348497822,1736585438837,-500.0,9.999e-05,2]
[348497823,1736585438847,-586.80662,9.999e-05,2]
[348497824,1736585438856,-500.0,9.999e-05,2]
[348497825,1736585438865,-500.0,9.999e-05,2]
[348497826,1736585438874,-68.164178,9.999e-05,2]
[348497827,1736585438886,-431.835822,9.999e-05,2]
[348497828,1736585438895,-500.0,9.999e-05,2]
[348497829,1736585438904,-500.0,9.999e-05,2]
[348497830,1736585438913,-150.42056811,9.999e-05,2]
[348497831,1736585438922,-500.0,9.999e-05,2]
[348497832,1736585438931,-500.0,9.999e-05,2]
[348497833,1736585438941,-500.0,9.999e-05,2]
[348497834,1736585438950,-500.0,9.999e-05,2]
[348497835,1736585438959,-451.57341139,9.999e-05,2]
[348497836,1736585438970,-48.42658861,9.999e-05,2]
[348497837,1736585438979,-500.0,9.999e-05,2]
[348497838,1736585438988,-500.0,9.999e-05,2]
[348497839,1736585438998,-500.0,9.999e-05,2]
[348497840,1736585439009,-500.0,9.999e-05,2]
[348497841,1736585439020,-500.0,9.999e-05,2]
[348497842,1736585439029,-218.95454367,9.999e-05,2]
[348497843,1736585439042,-275.51859053,9.999e-05,2]
[348497844,1736585439053,-242.8368658,9.999e-05,2]
[348497845,1736585439062,-500.0,9.999e-05,2]
[348497846,1736585439072,-500.0,9.999e-05,2]
[348497847,1736585439081,-500.0,9.999e-05,2]
[348497848,1736585439090,-247.1631342,9.999e-05,2]
[348497849,1736585439102,-252.8368658,9.999e-05,2]
[348497850,1736585439110,-500.0,9.999e-05,2]
[348497851,1736585439119,-500.0,9.999e-05,2]
[348497852,1736585439129,-849.96,9.999e-05,2]
[348497853,1736585439138,-500.0,9.999e-05,2]
[348497854,1736585439146,-501.10146646,9.999e-05,2]
[348497855,1736585439155,-356.8403564,9.999e-05,2]
[348497856,1736585439164,-500.0,9.999e-05,2]
[348497857,1736585439172,-500.0,9.999e-05,2]
[348497858,1736585439181,-500.0,9.999e-05,2]
[348497859,1736585439190,-500.0,9.999e-05,2]
[348497860,1736585439199,-500.0,9.999e-05,2]
[348497861,1736585439207,-500.0,9.999e-05,2]
[348497862,1736585439216,-500.0,9.999e-05,2]
[348497863,1736585439225,-500.0,9.999e-05,2]
[348497864,1736585439234,-305.0596436,9.999e-05,2]
[348497865,1736585439243,-500.0,9.999e-05,2]
[348497866,1736585439252,-495.72327322,9.999e-05,2]
[348497867,1736585439264,-4.27672678,9.999e-05,2]
[348497868,1736585439274,-344.70071701,9.999e-05,2]
[348497869,1736585439287,-1043.62928299,9.999e-05,2]
[348497870,1736585439296,-500.0,9.999e-05,2]
[348497871,1736585439306,-500.0,9.999e-05,2]
[348497872,1736585439314,-500.0,9.999e-05,2]
[348497873,1736585439323,-500.0,9.999e-05,2]
[348497874,1736585439332,-500.0,9.999e-05,2]
[348497875,1736585439341,-500.0,9.999e-05,2]
[348497876,1736585439350,-1031.02,9.999e-05,2]
[348497877,1736585439359,-500.0,9.999e-05,2]
[348497878,1736585439368,-500.0,9.999e-05,2]
[348497879,1736585439377,-561.79,9.999e-05,2]
[348497880,1736585439386,-500.0,9.999e-05,2]
[348497881,1736585439395,-500.0,9.999e-05,2]
[348497882,1736585439405,-39.87071701,9.999e-05,2]
[348497883,1736585439740,-304.33735203,9.999e-05,2]
[348497887,1736585440342,-155.79193096,9.999e-05,2]
[348497888,1736585440352,-658.19,9.999e-05,2]
[348497889,1736585440362,-556.98,9.999e-05,2]
[348497890,1736585440371,-1158.79,9.999e-05,2]
[348497891,1736585440380,-500.0,9.999e-05,2]
[348497892,1736585440390,-3254.26,9.999e-05,2]
[348497893,1736585440399,-500.0,9.999e-05,2]
[348497894,1736585440408,-500.0,9.999e-05,2]
[348497895,1736585440418,-451.77101644,9.999e-05,2]
[348497896,1736585440427,-500.0,9.999e-05,2]
[348497897,1736585440437,-500.0,9.999e-05,2]
[348497898,1736585440447,-520.06,9.999e-05,2]
[348497899,1736585440456,-500.0,9.999e-05,2]
[348497900,1736585440465,-439.4528138,9.999e-05,2]
[348497901,1736585440474,-500.0,9.999e-05,2]
[348497902,1736585440484,-2037.01,9.999e-05,2]
[348497903,1736585440493,-500.0,9.999e-05,2]
[348497904,1736585440502,-619.5,9.999e-05,2]
[348497905,1736585440510,-500.0,9.999e-05,2]
[348497906,1736585440519,-500.0,9.999e-05,2]
[348497907,1736585440528,-500.0,9.999e-05,2]
[348497908,1736585440537,-500.0,9.999e-05,2]
[348497909,1736585440547,-580.24,9.999e-05,2]
[348497910,1736585440557,-500.0,9.999e-05,2]
[348497911,1736585440566,-582.34634214,9.999e-05,2]
[348497912,1736585440575,-500.0,9.999e-05,2]
[348497913,1736585440585,-361.07620036,9.999e-05,2]
[348497914,1736585440594,-507.90148192,9.999e-05,2]
[348497915,1736585440603,-500.0,9.999e-05,2]
[348497916,1736585440612,-1292.14,9.999e-05,2]
[348497917,1736585440622,-864.42,9.999e-05,2]
[348497918,1736585440631,-402.46537924,9.999e-05,2]
[348497919,1736585440645,-97.53462076,9.999e-05,2]
[348497920,1736585440656,-1125.95,9.999e-05,2]
[348497921,1736585440667,-500.0,9.999e-05,2]
[348497922,1736585440676,-1754.69,9.999e-05,2]
[348497923,1736585440684,-1669.14,9.999e-05,2]
[348497924,1736585440694,-500.0,9.999e-05,2]
[348497925,1736585440703,-167.26252923,9.999e-05,2]
[348497926,1736585440714,-760.12747077,9.999e-05,2]
[348497927,1736585440723,-500.0,9.999e-05,2]
[348497928,1736585440732,-2141.99,9.999e-05,2]
[348497929,1736585440743,-500.0,9.999e-05,2]
[348497930,1736585440751,-500.0,9.999e-05,2]
[348497931,1736585440761,-500.0,9.999e-05,2]
[348497932,1736585440770,-1237.65,9.999e-05,2]
[348497933,1736585440779,-1290.62,9.999e-05,2]
[348497934,1736585440788,-694.62,9.999e-05,2]
[348497935,1736585440797,-500.0,9.999e-05,2]
[348497936,1736585440806,-500.0,9.999e-05,2]
[348497937,1736585440815,-500.0,9.999e-05,2]
[348497938,1736585440826,-500.0,9.999e-05,2]
[348497939,1736585440836,-867.96,9.999e-05,2]
[348497940,1736585440847,-637.65,9.999e-05,2]
[348497941,1736585440856,-500.0,9.999e-05,2]
[348497942,1736585440865,-553.99641276,9.999e-05,2]
[348497943,1736585440874,-500.0,9.999e-05,2]
[348497944,1736585440883,-500.0,9.999e-05,2]
[348497945,1736585440892,-814.28,9.999e-05,2]
[348497946,1736585440901,-339.57471854,9.999e-05,2]
[348497947,1736585440910,-500.0,9.999e-05,2]
[348497948,1736585440919,-500.0,9.999e-05,2]
[348497949,1736585440929,-500.0,9.999e-05,2]
[348497950,1736585440939,-500.0,9.999e-05,2]
[348497951,1736585440949,-500.0,9.999e-05,2]
[348497952,1736585440959,-500.0,9.999e-05,2]
[348497953,1736585440968,-427.71,9.999e-05,2]
[348497954,1736585440977,-517.46,9.999e-05,2]
[348497955,1736585440986,-500.0,9.999e-05,2]
[348497956,1736585440995,-1064.55,9.999e-05,2]
[348497957,1736585441004,-500.0,9.999e-05,2]
[348497958,1736585441015,-500.0,9.999e-05,2]
[348497959,1736585441024,-500.0,9.999e-05,2]
[348497960,1736585441033,-286.76359041,9.999e-05,2]
[348497961,1736585441042,-1570.31,9.999e-05,2]
[348497962,1736585441051,-500.0,9.999e-05,2]
[348497963,1736585441060,-500.0,9.999e-05,2]
[348497964,1736585441069,-500.0,9.999e-05,2]
[348497965,1736585441078,-746.65,9.999e-05,2]
[348497966,1736585441087,-500.0,9.999e-05,2]
[348497967,1736585441271,-500.0,9.999e-05,2]
[348497968,1736585441285,-500.0,9.999e-05,2]
[348497969,1736585441294,-500.0,9.999e-05,2]
[348497970,1736585441303,-770.55,9.999e-05,2]
[348497971,1736585441312,-500.0,9.999e-05,2]
[348497972,1736585441322,-500.75,9.999e-05,2]
[348497973,1736585441331,-500.0,9.999e-05,2]
[348497974,1736585441341,-1853.71,9.999e-05,2]
[348497975,1736585441351,-504.04,9.999e-05,2]
[348497976,1736585441361,-500.0,9.999e-05,2]
[348497977,1736585441371,-500.0,9.999e-05,2]
[348497978,1736585441379,-500.0,9.999e-05,2]
[348497979,1736585441388,-500.0,9.999e-05,2]
[348497980,1736585441397,-1120.75,9.999e-05,2]
[348497981,1736585441407,-1135.11,9.999e-05,2]
[348497982,1736585441415,-500.0,9.999e-05,2]
[348497983,1736585441425,-500.0,9.999e-05,2]
[348497984,1736585441434,-316210.54090126,0.0001,2]
[348497985,1736585441692,-1130.02054356,0.0001,2]
[348497986,1736585441704,-5891.17107594,0.0001,2]
[348497987,1736585441716,-2595.05684308,0.0001,2]
[348497988,1736585441727,-3826.79999999,0.0001,2]
[348497989,1736585441739,-34791.26071843,0.0001,2]
[348497990,1736585441750,-32572.72474308,0.0001,2]
[348497991,1736585441761,-96976.36804979,0.0001,2]
[348497992,1736585441772,-905.67307035,0.0001,2]
[348497993,1736585441783,-4627.87042098,0.0001,2]
[348498001,1736585442710,-500.0,9.999e-05,2]
[348498002,1736585442719,-757.04,9.999e-05,2]
[348498003,1736585442728,-500.0,9.999e-05,2]
[348498004,1736585442737,-737051.16079772,0.0001,2]
[348498005,1736585442748,-358.67365013,0.0001,2]
[348498006,1736585442784,-2901.18779003,0.0001,2]
[348498007,1736585442795,-11467.06769897,0.0001,2]
[348498008,1736585442806,-8127.0,0.0001,2]
[348498009,1736585442902,-68559.76835329,0.0001,2]
[348498010,1736585442932,-7390.591513,0.0001,2]
[348498011,1736585443030,-1462.80771459,0.0001,2]
[348498018,1736585445611,-882.47667716,9.999e-05,2]
[348498019,1736585445622,-105.58332284,9.999e-05,2]
[348498020,1736585445631,-27681.47998941,0.0001,2]
[348498022,1736585445666,-1498.40413289,0.0001,2]
[348498023,1736585445677,-17544.35709027,0.0001,2]
[348498024,1736585445688,-840.66813808,0.0001,2]
[348498025,1736585445721,-15398.6716932,0.0001,2]
[348498026,1736585445732,-47966.01850571,0.0001,2]
[348498027,1736585445743,-10418.23845889,0.0001,2]
[348498028,1736585445832,-18790.48797533,0.0001,2]
[348498029,1736585445843,-5096.647325,0.0001,2]
[348498030,1736585445889,-8381.19262884,0.0001,2]
[348498031,1736585445900,-5192.7683044,0.0001,2]
[348498032,1736585445911,-660.00000004,0.0001,2]
[348498033,1736585445945,-23486.86413292,0.0001,2]
[348498056,1736585476887,837.94,8.219e-05,2]
[348498057,1736585517249,6880.0,0.0002,120]
[348498059,1736586371999,840.98,8.219e-05,2]
[348498061,1736586631854,-250.0,8.635e-05,2]
[348498062,1736586631864,-543.06,8.673e-05,2]
[348498063,1736586631874,-418.24,8.731e-05,2]
[348498064,1736586631914,-581.76,8.731e-05,2]
[348498065,1736586631924,-64.50342777,8.768e-05,2]
[348498066,1736586631935,-134.39657223,8.768e-05,2]
[348498067,1736586631944,-250.0,8.768e-05,2]
[348498068,1736586631954,-3896.85048274,8.768e-05,2]
[348498069,1736586631964,-283.13435253,8.768e-05,2]
[348498070,1736586631973,-230.48,8.811e-05,2]
[348498071,1736586631983,-1852.42,8.913e-05,2]
[348498072,1736586631992,-200.0,8.925e-05,2]
[348498073,1736586632001,-437.57,8.945e-05,2]
[348498074,1736586632012,-432.31,9.016e-05,2]
[348498075,1736586632021,-159.24,9.09e-05,2]
[348498076,1736586632031,-189.51,9.118e-05,2]
[348498077,1736586632040,-250.0,9.165e-05,2]
[348498078,1736586632050,-4043.72,9.19e-05,2]
[348498079,1736586632059,-200.0,9.215e-05,2]
[348498080,1736586632068,-2095.91,9.322e-05,2]
[348498081,1736586632078,-155.714126,9.4e-05,2]
[348498082,1736586632087,-15581.81075073,9.47e-05,2]
[348498083,1736586632098,-7746.48924927,9.47e-05,2]
[348498084,1736586632108,-600.0,9.664e-05,2]
[348498085,1736586632117,-500.0,9.664e-05,2]
[348498086,1736586632126,-7107.2161,9.7e-05,2]
[348498087,1736586632136,-2500.0,9.7e-05,2]
[348498088,1736586632145,-1429.248,9.74e-05,2]
[348498089,1736586632154,-177.449,9.74e-05,2]
[348498090,1736586632164,-561.9792,9.799e-05,2]
[348498091,1736586632173,-1739.7208,9.8e-05,2]
[348498092,1736586632182,-37186.7431,9.8e-05,2]
[348498093,1736586632192,-9773.23847763,9.8e-05,2]
[348498094,1736586632210,-12550.88950666,9.8e-05,2]
[348498095,1736586632221,-1997.21734795,9.8e-05,2]
[348498096,1736586632239,-712.02367317,9.8e-05,2]
[348498097,1736586632264,-354.92370002,9.8e-05,2]
[348498099,1736586632275,-4118.54481014,9.8e-05,2]
[348498101,1736586632290,-9432.78553198,9.8e-05,2]
[348498165,1736586637710,-902.63081299,9.8e-05,2]
[348498166,1736586637820,-13749.21415508,9.8e-05,2]
[348498167,1736586637831,-2896.39516468,9.8e-05,2]
[348498168,1736586637930,-13318.76281526,9.8e-05,2]
[348498169,1736586637942,-918.803945,9.8e-05,2]
[348498171,1736586639819,-5574.3,9.8e-05,2]
[348498172,1736586639870,-1049.41419005,9.8e-05,2]
[348498173,1736586639882,-1685.77121904,9.8e-05,2]
[348498174,1736586639893,-1007.52312096,9.8e-05,2]
[348498175,1736586639927,-4919.72166071,9.8e-05,2]
[348498176,1736586639938,-52673.16722571,9.8e-05,2]
[348498177,1736586639947,-3776.0593,9.8e-05,2]
[348498178,1736586639956,-209.7633,9.8e-05,2]
[348498179,1736586639966,-100244.52652619,9.8e-05,2]
[348498180,1736586639997,-6673.96904916,9.8e-05,2]
[348498181,1736586640008,-931.57944,9.8e-05,2]
[348498182,1736586640110,-2792.33549505,9.8e-05,2]
[348498183,1736586640171,-193129.40211064,9.8e-05,2]
[348498189,1736586642861,-449172.65330443,9.8e-05,2]
[348498190,1736586643077,-37079.6228439,9.8e-05,2]
[348498194,1736586645857,-840.72193795,9.8e-05,2]
[348498195,1736586646017,-4663.3196001,9.8e-05,2]
[348498196,1736586646079,-449.9794775,9.8e-05,2]
[348498197,1736586646092,-9761.9736,9.8e-05,2]
[348498202,1736587203406,211.0,9.8e-05,30]
[348498203,1736587311274,841.62,8.219e-05,2]
[348498204,1736587503234,202.78572626,0.0002,120]
[348498205,1736587504001,212.36641086,9.8e-05,30]
[348498206,1736587505417,410.0,0.0001513,120]
[348498207,1736587505447,333.67,0.0001513,120]
[348498208,1736587530913,150.0,0.00019241,120]
[348498211,1736587590853,150.0,0.00018055,120]
[348498212,1736587651349,150.0,0.00018491,120]
[348498213,1736587711319,150.0,0.00017908,120]
[348498216,1736587771360,150.0,0.00019236,120]
[348498217,1736587830802,150.0,0.00019325,120]
[348498223,1736587832096,-250.0,8.871e-05,2]
[348498224,1736587832106,-30.0,8.893e-05,2]
[348498225,1736587832118,-566.6937822,8.893e-05,2]
[348498226,1736587832183,-403.3062178,8.893e-05,2]
[348498227,1736587832193,-75.00966606,8.942e-05,2]
[348498228,1736587832204,-78.04033394,8.942e-05,2]
[348498229,1736587832215,-178.06,8.956e-05,2]
[348498230,1736587832224,-250.0,9.028e-05,2]
[348498231,1736587832235,-43.89966606,9.065e-05,2]
[348498232,1736587832255,-256.10033394,9.065e-05,2]
[348498233,1736587832264,-1384.94395072,9.066e-05,2]
[348498234,1736587832303,-3361.16061818,9.066e-05,2]
[348498235,1736587832315,-3049.88454875,9.066e-05,2]
[348498236,1736587832419,-2257.03968916,9.066e-05,2]
[348498267,1736587838322,-998.39519968,9.066e-05,2]
[348498268,1736587838334,-746.00526567,9.066e-05,2]
[348498269,1736587838351,-2873.5499999,9.066e-05,2]
[348498270,1736587838362,-3434.92072794,9.066e-05,2]
[348498271,1736587838371,-500.0,9.397e-05,2]
[348498273,1736587838380,-176.63,9.434e-05,2]
[348498274,1736587838389,-763.0,9.508e-05,2]
[348498276,1736587838398,-600.0,9.664e-05,2]
[348498277,1736587838407,-300.0,9.678e-05,2]
[348498278,1736587838416,-483.6389,9.699e-05,2]
[348498279,1736587838425,-150.53,9.7e-05,2]
[348498280,1736587838434,-311.52,9.7e-05,2]
[348498282,1736587838443,-150.0,9.71e-05,2]
[348498284,1736587838452,-1755.0573,9.797e-05,2]
[348498286,1736587838461,-75736.8373,9.799e-05,2]
[348498288,1736587838471,-24039.1952,9.799e-05,2]
[348498290,1736587838480,-43415.63165548,9.8e-05,2]
[348498292,1736587838493,-150.0,9.8e-05,2]
[348498294,1736587838502,-150.0,9.8e-05,2]
[348498296,1736587838511,-177.44989693,9.8e-05,2]
[348498298,1736587838520,-1347.948,9.8e-05,2]
[348498300,1736587838529,-4659.90285895,9.814e-05,2]
[348498302,1736587838538,-150.0,9.82e-05,2]
[348498304,1736587838546,-500.0,9.896e-05,2]
[348498306,1736587838555,-500.0,9.896e-05,2]
[348498307,1736587838564,-500.0,9.896e-05,2]
[348498309,1736587838573,-500.0,9.896e-05,2]
[348498311,1736587838582,-500.0,9.896e-05,2]
[348498313,1736587838591,-500.0,9.896e-05,2]
[348498315,1736587838600,-500.0,9.896e-05,2]
[348498317,1736587838609,-500.0,9.896e-05,2]
[348498318,1736587838617,-500.0,9.896e-05,2]
[348498320,1736587838627,-501.59316364,9.896e-05,2]
[348498322,1736587838636,-500.0,9.896e-05,2]
[348498324,1736587838645,-500.0,9.896e-05,2]
[348498325,1736587838654,-1009.26,9.896e-05,2]
[348498326,1736587838663,-580.05,9.896e-05,2]
[348498327,1736587838671,-1218.98,9.896e-05,2]
[348498328,1736587838680,-3463.66,9.896e-05,2]
[348498329,1736587838689,-500.0,9.896e-05,2]
[348498330,1736587838698,-500.0,9.896e-05,2]
[348498331,1736587838706,-614.71,9.896e-05,2]
[348498332,1736587838715,-1733.94,9.896e-05,2]
[348498333,1736587838724,-1193.93,9.896e-05,2]
[348498334,1736587838733,-500.0,9.896e-05,2]
[348498335,1736587838742,-2240.84,9.896e-05,2]
[348498336,1736587838751,-500.0,9.896e-05,2]
[348498337,1736587838759,-576.02,9.896e-05,2]
[348498338,1736587838768,-500.0,9.896e-05,2]
[348498340,1736587838777,-1282.76,9.896e-05,2]
[348498341,1736587838786,-500.0,9.896e-05,2]
[348498343,1736587838796,-500.0,9.896e-05,2]
[348498344,1736587838806,-831.8,9.896e-05,2]
[348498345,1736587838815,-500.0,9.896e-05,2]
[348498346,1736587838824,-500.0,9.896e-05,2]
[348498347,1736587838833,-853.36,9.896e-05,2]
[348498348,1736587838842,-500.0,9.896e-05,2]
[348498349,1736587838851,-1108.44,9.896e-05,2]
[348498350,1736587838860,-1842.25,9.896e-05,2]
[348498351,1736587838869,-500.0,9.896e-05,2]
[348498352,1736587838879,-500.0,9.896e-05,2]
[348498353,1736587838887,-537.57,9.896e-05,2]
[348498354,1736587838897,-2047.58,9.896e-05,2]
[348498355,1736587838906,-1617.11,9.896e-05,2]
[348498356,1736587838915,-784.91,9.896e-05,2]
[348498357,1736587838924,-500.0,9.896e-05,2]
[348498358,1736587838934,-866.75,9.896e-05,2]
[348498359,1736587838945,-540.05,9.896e-05,2]
[348498360,1736587838955,-500.0,9.896e-05,2]
[348498361,1736587838964,-733.15,9.896e-05,2]
[348498362,1736587838973,-500.0,9.896e-05,2]
[348498363,1736587838982,-500.0,9.896e-05,2]
[348498364,1736587838992,-500.0,9.896e-05,2]
[348498365,1736587839001,-500.0,9.896e-05,2]
[348498366,1736587839010,-500.0,9.896e-05,2]
[348498367,1736587839020,-500.0,9.896e-05,2]
[348498368,1736587839029,-531.78,9.896e-05,2]
[348498369,1736587839039,-500.0,9.896e-05,2]
[348498370,1736587839048,-500.0,9.896e-05,2]
[348498371,1736587839057,-500.0,9.896e-05,2]
[348498372,1736587839067,-500.0,9.896e-05,2]
[348498373,1736587839077,-500.0,9.896e-05,2]
[348498374,1736587839086,-500.0,9.896e-05,2]
[348498375,1736587839096,-500.0,9.896e-05,2]
[348498376,1736587839105,-500.0,9.896e-05,2]
[348498377,1736587839114,-500.0,9.896e-05,2]
[348498378,1736587839123,-500.0,9.896e-05,2]
[348498379,1736587839132,-500.0,9.896e-05,2]
[348498380,1736587839142,-500.0,9.896e-05,2]
[348498381,1736587839152,-500.0,9.896e-05,2]
[348498382,1736587839161,-500.0,9.896e-05,2]
[348498383,1736587839171,-692.6,9.896e-05,2]
[348498384,1736587839180,-1156.29,9.896e-05,2]
[348498385,1736587839189,-1435.39,9.896e-05,2]
[348498386,1736587839199,-500.0,9.896e-05,2]
[348498387,1736587839208,-500.0,9.896e-05,2]
[348498388,1736587839217,-500.0,9.896e-05,2]
[348498389,1736587839227,-500.0,9.896e-05,2]
[348498390,1736587839237,-500.0,9.897e-05,2]
[348498391,1736587839247,-500.0,9.897e-05,2]
[348498392,1736587839259,-500.0,9.897e-05,2]
[348498393,1736587839269,-500.0,9.897e-05,2]
[348498394,1736587839279,-500.0,9.897e-05,2]
[348498395,1736587839288,-500.0,9.897e-05,2]
[348498396,1736587839298,-500.0,9.897e-05,2]
[348498397,1736587839307,-500.0,9.897e-05,2]
[348498398,1736587839316,-500.0,9.897e-05,2]
[348498399,1736587839326,-500.0,9.897e-05,2]
[348498400,1736587839335,-500.0,9.897e-05,2]
[348498401,1736587839345,-500.0,9.897e-05,2]
[348498402,1736587839355,-500.0,9.897e-05,2]